fUSD/lending_fUSD_20260514
["ID","MTS","AMOUNT","RATE_DAILY","PERIOD"]
[422252867,1778766643000,-609.53,0.00026344,30]
[422252874,1778766643000,-1310.01,0.00026344,7]
[422252876,1778766643000,-1315.39,0.00026373,2]
[422252877,1778766643000,-609.53,0.00026373,2]
[422252879,1778766643000,-2015.85,0.00026373,2]
[422252875,1778766643000,-2009.39,0.00026344,7]
[422252885,1778766643000,-1315.39,0.00026402,7]
[422252880,1778766643000,-2375.37,0.00026373,2]
[422252883,1778766643000,-2009.39,0.00026373,2]
[422252884,1778766643000,-200.0,0.0002639,7]
[422252882,1778766643000,-1310.01,0.00026373,2]
[422252887,1778766643000,-2015.85,0.00026402,7]
[422252917,1778766643000,-3000.0,0.00026517,30]
[422252920,1778766643000,-3000.0,0.00026517,30]
[422252918,1778766643000,-3000.0,0.00026517,30]
[422252951,1778766643000,-157.0,0.00026676,3]
[422252957,1778766643000,-161.6598604,0.00026732,2]
[422252955,1778766643000,-8136.2554829,0.00026732,2]
[422252952,1778766643000,-559.6324316,0.00026732,2]
[422252954,1778766643000,-696999.1854596,0.00026732,2]
[422252953,1778766643000,-12351.6871769,0.00026732,2]
[422252956,1778766643000,-2614.9189368,0.00026732,2]
[422252959,1778766643000,-202.01375838,0.0002679,7]
[422252969,1778766643000,-6878.40236706,0.000271,2]
[422252958,1778766643000,-88552.60881034,0.00026732,2]
[422252966,1778766643000,-214.95940296,0.00027,7]
[422252960,1778766643000,-2166.0,0.0002679,7]
[422252947,1778766643000,-2009.44,0.00026575,7]
[422252968,1778766643000,-817.53776541,0.00027082,2]
[422252965,1778766643000,-208.3309892,0.00027,30]
[422252967,1778766643000,-208.3309892,0.00027,7]
[422252963,1778766643000,-1200.0,0.000269,9]
[422252961,1778766643000,-6878.40236706,0.000268,2]
[422252962,1778766643000,-150.0,0.00026849,2]
[422252972,1778766643000,-152.0,0.00027299,3]
[422252970,1778766643000,-8508.0,0.000271,7]
[422252974,1778766643000,-1206.53,0.000273,7]
[422252975,1778766643000,-402.98440873,0.00027397,2]
[422252973,1778766643000,-6878.40236706,0.000273,2]
[422252971,1778766643000,-600.0,0.00027205,4]
[422252916,1778766643000,-3000.0,0.00026517,30]
[422252964,1778766643000,-214.95940296,0.00027,30]
[422252950,1778766643000,-152.0,0.00026662,7]
[422252976,1778766643000,-313.43027006,0.00027397,30]
[422252949,1778766643000,-600.0,0.00026644,4]
[422252948,1778766643000,-200.0,0.0002659,20]
[422252921,1778766643000,-3000.0,0.00026517,30]
[422252923,1778766643000,-609.53,0.00026517,30]
[422252925,1778766643000,-2375.37,0.00026517,7]
[422252924,1778766643000,-2015.85,0.00026517,7]
[422252926,1778766643000,-609.36,0.00026517,30]
[422252928,1778766643000,-2009.39,0.00026517,7]
[422252922,1778766643000,-1315.39,0.00026517,7]
[422252927,1778766643000,-1310.01,0.00026517,7]
[422252929,1778766643000,-665.57701068,0.00026534,2]
[422252930,1778766643000,-1280.88388878,0.00026534,2]
[422252931,1778766643000,-152.0,0.00026534,2]
[422252933,1778766643000,-1315.39,0.00026546,2]
[422252919,1778766643000,-3000.0,0.00026517,30]
[422252935,1778766643000,-2015.85,0.00026546,2]
[422252946,1778766643000,-1310.17,0.00026575,7]
[422252941,1778766643000,-1315.41,0.00026575,7]
[422252944,1778766643000,-2375.52,0.00026575,7]
[422252939,1778766643000,-2009.39,0.00026546,2]
[422252932,1778766643000,-2379.79,0.00026546,2]
[422252940,1778766643000,-2379.81,0.00026575,7]
[422252938,1778766643000,-1310.01,0.00026546,2]
[422252943,1778766643000,-2015.98,0.00026575,7]
[422252936,1778766643000,-2375.37,0.00026546,2]
[422252934,1778766643000,-609.53,0.00026546,2]
[422252937,1778766643000,-609.36,0.00026546,2]
[422252945,1778766643000,-609.44,0.00026575,7]
[422252942,1778766643000,-609.69,0.00026575,7]
[422253013,1778766644000,-1354.0,0.00027464,2]
[422253012,1778766644000,-926.0,0.00027464,2]
[422253015,1778766644000,-6052.0,0.00027464,2]
[422253009,1778766644000,-4042.1,0.000274,14]
[422253018,1778766644000,-401.75,0.000275,2]
[422253016,1778766644000,-930.0,0.00027464,2]
[422253014,1778766644000,-1270.0,0.00027464,2]
[422253010,1778766644000,-8508.0,0.000274,7]
[422253017,1778766644000,-153.0,0.00027488,2]
[422253007,1778766644000,-1145.83,0.000274,7]
[422253011,1778766644000,-3542.0,0.00027464,2]
[422253019,1778766644000,-150.0,0.0002761,2]
[422253026,1778766644000,-13767.27727345,0.00027876,2]
[422253020,1778766644000,-200.0,0.00027671,2]
[422253023,1778766644000,-500.0,0.00027693,2]
[422253022,1778766644000,-20595.58,0.00027691,7]
[422253025,1778766644000,-500.0,0.000278,7]
[422253029,1778766644000,-200.0,0.00027948,2]
[422253027,1778766644000,-16591.47030588,0.000279,2]
[422253028,1778766644000,-200.0,0.00027948,2]
[422253024,1778766644000,-600.0,0.00027767,5]
[422253031,1778766644000,-308.0,0.00028,2]
[422253030,1778766644000,-600.0,0.00028,2]
[422253041,1778766644000,-678.96,0.00028,2]
[422253008,1778766644000,-2998.49,0.000274,7]
[422253021,1778766644000,-200.0,0.00027671,2]
[422253004,1778766644000,-150.0,0.00027397,2]
[422252987,1778766644000,-1017.61,0.00027397,2]
[422253002,1778766644000,-150.0,0.00027397,2]
[422253032,1778766644000,-1000.0,0.00028,2]
[422252978,1778766644000,-186.4,0.00027397,7]
[422252980,1778766644000,-150.0,0.00027397,30]
[422252981,1778766644000,-200.0,0.00027397,2]
[422252982,1778766644000,-1500.0,0.00027397,2]
[422252979,1778766644000,-200.0,0.00027397,2]
[422252985,1778766644000,-151.16892255,0.00027397,2]
[422252986,1778766644000,-1262.82,0.00027397,2]
[422252983,1778766644000,-2000.0,0.00027397,7]
[422252988,1778766644000,-526.4,0.00027397,2]
[422252995,1778766644000,-200.0,0.00027397,7]
[422252984,1778766644000,-1009.93,0.00027397,2]
[422253006,1778766644000,-500.0,0.00027398,2]
[422252990,1778766644000,-11449.01,0.00027397,10]
[422252991,1778766644000,-300.0,0.00027397,2]
[422252992,1778766644000,-200.0,0.00027397,7]
[422252993,1778766644000,-200.0,0.00027397,7]
[422252989,1778766644000,-1464.95,0.00027397,2]
[422252996,1778766644000,-200.0,0.00027397,7]
[422253001,1778766644000,-150.0,0.00027397,2]
[422252997,1778766644000,-289.991963,0.00027397,7]
[422252998,1778766644000,-5521.32,0.00027397,10]
[422253000,1778766644000,-150.0,0.00027397,2]
[422252999,1778766644000,-150.0,0.00027397,2]
[422253003,1778766644000,-150.0,0.00027397,2]
[422253005,1778766644000,-207.92460459,0.00027397,2]
[422252994,1778766644000,-200.0,0.00027397,7]
[422253033,1778766644000,-314.0,0.00028,2]
[422253044,1778766644000,-200.0,0.00028227,2]
[422253036,1778766644000,-208.3309892,0.00028,10]
[422253066,1778766644000,-1145.83,0.000289,7]
[422253068,1778766644000,-1206.53,0.00029,7]
[422253069,1778766644000,-1011.20107772,0.00029005,2]
[422253067,1778766644000,-500.0,0.00028959,2]
[422253071,1778766644000,-1564.370404,0.000291,2]
[422253073,1778766644000,-4042.1,0.000293,14]
[422253074,1778766644000,-1001.89,0.000293,2]
[422253072,1778766644000,-313.43027006,0.00029224,30]
[422253076,1778766644000,-1001.89,0.00029327,2]
[422253075,1778766644000,-1001.89,0.00029313,2]
[422253077,1778766644000,-1001.89,0.0002934,2]
[422253078,1778766644000,-1001.89,0.00029353,2]
[422253079,1778766644000,-1001.89,0.00029367,2]
[422253080,1778766644000,-1001.89,0.0002938,2]
[422253081,1778766644000,-1001.89,0.00029393,2]
[422253085,1778766644000,-1000.0,0.00029435,7]
[422253084,1778766644000,-1001.89,0.00029433,2]
[422253082,1778766644000,-1001.89,0.00029407,2]
[422253083,1778766644000,-1001.89,0.0002942,2]
[422253091,1778766644000,-44448.44288901,0.000295,7]
[422253087,1778766644000,-600.0,0.00029452,7]
[422253089,1778766644000,-1001.89,0.00029473,2]
[422253090,1778766644000,-1001.89,0.00029487,2]
[422253092,1778766644000,-1001.89,0.000295,2]
[422253034,1778766644000,-200.0,0.00028,2]
[422253070,1778766644000,-1000.0,0.00029005,2]
[422253064,1778766644000,-500.0,0.00028768,2]
[422253086,1778766644000,-1001.89,0.00029447,2]
[422253061,1778766644000,-300.0,0.00028514,2]
[422253065,1778766644000,-600.0,0.0002889,6]
[422253037,1778766644000,-678.96,0.00028,2]
[422253038,1778766644000,-678.96,0.00028,2]
[422253039,1778766644000,-678.96,0.00028,2]
[422253035,1778766644000,-214.95940296,0.00028,10]
[422253042,1778766644000,-603.40096552,0.00028006,2]
[422253088,1778766644000,-1001.89,0.0002946,2]
[422253045,1778766644000,-200.0,0.00028227,2]
[422253043,1778766644000,-150.0,0.00028192,2]
[422253052,1778766644000,-156.57,0.00028493,2]
[422253050,1778766644000,-295.0,0.000284,120]
[422253046,1778766644000,-2661.0,0.00028267,2]
[422253051,1778766644000,-4042.1,0.000284,14]
[422253040,1778766644000,-678.96,0.00028,2]
[422253056,1778766644000,-200.0,0.00028509,2]
[422253049,1778766644000,-181.87,0.00028383,7]
[422253062,1778766644000,-300.0,0.00028514,2]
[422253060,1778766644000,-300.0,0.00028514,2]
[422253057,1778766644000,-25000.0,0.00028514,7]
[422253063,1778766644000,-157.0,0.00028572,3]
[422253059,1778766644000,-300.0,0.00028514,2]
[422253055,1778766644000,-200.0,0.00028509,2]
[422253053,1778766644000,-2998.49,0.000285,7]
[422253054,1778766644000,-3865.19966657,0.00028505,7]
[422253048,1778766644000,-600.0,0.00028329,6]
[422253047,1778766644000,-313.43027006,0.00028311,30]
[422253058,1778766644000,-300.0,0.00028514,2]
[422253128,1778766645000,-393.0,0.00029871,2]
[422253127,1778766645000,-347.0,0.00029866,2]
[422253130,1778766645000,-393.0,0.00029883,2]
[422253132,1778766645000,-393.0,0.00029885,2]
[422253129,1778766645000,-347.0,0.00029873,2]
[422253120,1778766645000,-156.8306539,0.00029829,2]
[422253137,1778766645000,-393.0,0.00029909,2]
[422253136,1778766645000,-393.0,0.00029907,2]
[422253126,1778766645000,-393.0,0.00029864,2]
[422253121,1778766645000,-401.0,0.00029832,2]
[422253135,1778766645000,-393.0,0.00029906,2]
[422253125,1778766645000,-393.0,0.00029859,2]
[422253133,1778766645000,-347.0,0.00029893,2]
[422253146,1778766645000,-401.0,0.00029935,2]
[422253134,1778766645000,-393.0,0.00029901,2]
[422253138,1778766645000,-401.0,0.00029909,2]
[422253140,1778766645000,-393.0,0.00029918,2]
[422253141,1778766645000,-401.0,0.00029921,2]
[422253145,1778766645000,-347.0,0.00029935,2]
[422253142,1778766645000,-347.0,0.00029923,2]
[422253143,1778766645000,-347.0,0.00029927,2]
[422253148,1778766645000,-401.0,0.00029941,2]
[422253144,1778766645000,-393.0,0.00029932,2]
[422253150,1778766645000,-347.0,0.00029951,2]
[422253147,1778766645000,-393.0,0.00029941,2]
[422253139,1778766645000,-393.0,0.00029911,2]
[422253131,1778766645000,-401.0,0.00029883,2]
[422253117,1778766645000,-401.0,0.00029809,2]
[422253098,1778766645000,-152.0,0.00029643,4]
[422253118,1778766645000,-150.0,0.00029819,2]
[422253151,1778766645000,-401.0,0.00029951,2]
[422253097,1778766645000,-20595.58,0.00029614,7]
[422253095,1778766645000,-1500.0,0.000296,2]
[422253096,1778766645000,-150.0,0.00029601,2]
[422253094,1778766645000,-353.08,0.000296,2]
[422253100,1778766645000,-393.0,0.00029671,2]
[422253099,1778766645000,-393.0,0.00029647,2]
[422253101,1778766645000,-393.0,0.00029677,2]
[422253110,1778766645000,-401.0,0.00029778,2]
[422253102,1778766645000,-393.0,0.00029678,2]
[422253103,1778766645000,-393.0,0.00029684,2]
[422253109,1778766645000,-401.0,0.00029775,2]
[422253119,1778766645000,-393.0,0.00029819,2]
[422253107,1778766645000,-393.0,0.00029766,2]
[422253104,1778766645000,-2998.49,0.000297,7]
[422253106,1778766645000,-393.0,0.00029756,2]
[422253105,1778766645000,-401.0,0.00029736,2]
[422253111,1778766645000,-393.0,0.00029785,2]
[422253112,1778766645000,-393.0,0.00029787,2]
[422253123,1778766645000,-401.0,0.00029843,2]
[422253115,1778766645000,-393.0,0.00029798,2]
[422253113,1778766645000,-393.0,0.00029787,2]
[422253122,1778766645000,-401.0,0.00029836,2]
[422253116,1778766645000,-393.0,0.000298,2]
[422253114,1778766645000,-393.0,0.0002979,2]
[422253124,1778766645000,-401.0,0.00029853,2]
[422253108,1778766645000,-401.0,0.00029767,2]
[422253149,1778766645000,-401.0,0.00029942,2]
[422253093,1778766645000,-150.0,0.00029589,30]
[422253154,1778766645000,-393.0,0.00029973,2]
[422253195,1778766645000,-393.0,0.00030104,2]
[422253183,1778766645000,-401.0,0.00030067,2]
[422253188,1778766645000,-393.0,0.00030079,2]
[422253189,1778766645000,-453.63,0.00030082,120]
[422253186,1778766645000,-347.0,0.00030072,2]
[422253190,1778766645000,-393.0,0.00030088,2]
[422253184,1778766645000,-347.0,0.00030071,2]
[422253185,1778766645000,-393.0,0.00030071,2]
[422253187,1778766645000,-347.0,0.00030079,2]
[422253191,1778766645000,-393.0,0.00030089,2]
[422253196,1778766645000,-347.0,0.00030112,2]
[422253199,1778766645000,-401.0,0.00030121,2]
[422253194,1778766645000,-1500.0,0.000301,2]
[422253200,1778766645000,-347.0,0.00030123,2]
[422253202,1778766645000,-393.0,0.00030128,2]
[422253197,1778766645000,-393.0,0.00030119,2]
[422253201,1778766645000,-393.0,0.00030126,2]
[422253203,1778766645000,-401.0,0.00030128,2]
[422253198,1778766645000,-393.0,0.00030121,2]
[422253205,1778766645000,-1262.82,0.00030137,2]
[422253206,1778766645000,-5076.08027006,0.00030137,30]
[422253207,1778766645000,-500.0,0.00030137,2]
[422253208,1778766645000,-4151.07820803,0.00030236,2]
[422253209,1778766645000,-2661.0,0.00030239,2]
[422253211,1778766645000,-1206.53,0.000303,7]
[422253210,1778766645000,-10275.2733,0.000303,2]
[422253204,1778766645000,-347.0,0.00030132,2]
[422253193,1778766645000,-393.0,0.00030098,2]
[422253212,1778766645000,-603.40096552,0.00030364,2]
[422253181,1778766645000,-401.0,0.00030065,2]
[422253177,1778766645000,-393.0,0.0003006,2]
[422253155,1778766645000,-347.0,0.0002998,2]
[422253157,1778766645000,-347.0,0.00029986,2]
[422253156,1778766645000,-470.0,0.00029983,2]
[422253153,1778766645000,-347.0,0.00029962,2]
[422253159,1778766645000,-401.0,0.00029998,2]
[422253164,1778766645000,-347.0,0.00030013,2]
[422253167,1778766645000,-401.0,0.00030027,2]
[422253162,1778766645000,-650.0,0.0003,2]
[422253170,1778766645000,-393.0,0.0003004,2]
[422253161,1778766645000,-4042.1,0.0003,14]
[422253158,1778766645000,-393.0,0.00029991,2]
[422253166,1778766645000,-393.0,0.00030014,2]
[422253169,1778766645000,-393.0,0.00030038,2]
[422253152,1778766645000,-347.0,0.00029958,2]
[422253163,1778766645000,-200.0,0.0003,2]
[422253168,1778766645000,-393.0,0.00030028,2]
[422253174,1778766645000,-393.0,0.00030054,2]
[422253182,1778766645000,-393.0,0.00030066,2]
[422253179,1778766645000,-401.0,0.00030061,2]
[422253176,1778766645000,-347.0,0.0003006,2]
[422253178,1778766645000,-393.0,0.00030061,2]
[422253180,1778766645000,-401.0,0.00030062,2]
[422253172,1778766645000,-347.0,0.00030048,2]
[422253173,1778766645000,-347.0,0.00030053,2]
[422253171,1778766645000,-401.0,0.00030044,2]
[422253160,1778766645000,-200.0,0.0003,120]
[422253165,1778766645000,-600.0,0.00030014,7]
[422253175,1778766645000,-347.0,0.00030056,2]
[422253246,1778766646000,-150.0,0.00030723,7]
[422253252,1778766646000,-150.0,0.00030802,7]
[422253249,1778766646000,-150.0,0.00030723,7]
[422253248,1778766646000,-150.0,0.00030723,7]
[422253247,1778766646000,-150.0,0.00030723,7]
[422253255,1778766646000,-150.0,0.00030886,7]
[422253250,1778766646000,-150.0,0.00030723,7]
[422253254,1778766646000,-150.0,0.0003088,7]
[422253244,1778766646000,-150.0,0.00030723,7]
[422253251,1778766646000,-150.0,0.00030763,7]
[422253253,1778766646000,-150.0,0.00030841,7]
[422253262,1778766646000,-208.3309892,0.00031,30]
[422253266,1778766646000,-6266.74027006,0.0003105,30]
[422253259,1778766646000,-150.0,0.00030959,7]
[422253258,1778766646000,-150.0,0.00030937,7]
[422253263,1778766646000,-150.0,0.00031008,7]
[422253245,1778766646000,-150.0,0.00030723,7]
[422253261,1778766646000,-214.95940296,0.00031,30]
[422253260,1778766646000,-150.0,0.00030998,7]
[422253265,1778766646000,-150.0,0.00031048,7]
[422253264,1778766646000,-150.0,0.00031037,7]
[422253257,1778766646000,-928.5,0.0003093,7]
[422253273,1778766646000,-600.0,0.00031137,9]
[422253277,1778766646000,-1000.0,0.0003115,2]
[422253271,1778766646000,-680.095,0.00031096,28]
[422253256,1778766646000,-150.0,0.00030919,7]
[422253243,1778766646000,-150.0,0.00030723,7]
[422253237,1778766646000,-202.0,0.00030593,30]
[422253241,1778766646000,-150.0,0.00030723,7]
[422253269,1778766646000,-150.0,0.00031081,2]
[422253213,1778766646000,-2006.51,0.000304,2]
[422253214,1778766646000,-3542.0,0.00030464,2]
[422253215,1778766646000,-926.0,0.00030464,2]
[422253216,1778766646000,-1354.0,0.00030464,2]
[422253218,1778766646000,-6052.0,0.00030464,2]
[422253217,1778766646000,-1270.0,0.00030464,2]
[422253219,1778766646000,-930.0,0.00030464,2]
[422253220,1778766646000,-157.0,0.00030467,3]
[422253224,1778766646000,-711.0,0.0003056,30]
[422253226,1778766646000,-248.0,0.0003056,30]
[422253222,1778766646000,-1145.83,0.000305,7]
[422253242,1778766646000,-150.3516787,0.00030723,7]
[422253221,1778766646000,-13767.27727345,0.00030485,2]
[422253230,1778766646000,-600.0,0.00030575,8]
[422253223,1778766646000,-2998.49,0.000305,7]
[422253232,1778766646000,-155.0,0.00030593,30]
[422253231,1778766646000,-206.0,0.00030593,30]
[422253229,1778766646000,-2367.0,0.00030574,30]
[422253233,1778766646000,-217.0,0.00030593,30]
[422253235,1778766646000,-4639.0,0.00030593,30]
[422253238,1778766646000,-4042.1,0.000307,14]
[422253236,1778766646000,-237.0,0.00030593,30]
[422253240,1778766646000,-3662.6825366,0.000307,2]
[422253234,1778766646000,-3426.0,0.00030593,30]
[422253239,1778766646000,-3662.68253661,0.000307,2]
[422253227,1778766646000,-169.0,0.0003056,30]
[422253228,1778766646000,-466.0,0.00030574,30]
[422253278,1778766646000,-1000.0,0.0003115,2]
[422253268,1778766646000,-150.0,0.00031076,7]
[422253304,1778766646000,-1000.0,0.000315,7]
[422253305,1778766646000,-500.0,0.00031507,2]
[422253308,1778766646000,-150.0,0.00031536,7]
[422253306,1778766646000,-150.0,0.00031508,7]
[422253307,1778766646000,-20595.58,0.00031536,7]
[422253314,1778766646000,-2367.0,0.00031574,30]
[422253310,1778766646000,-711.0,0.0003156,30]
[422253309,1778766646000,-150.0,0.00031547,7]
[422253311,1778766646000,-248.0,0.0003156,30]
[422253313,1778766646000,-466.0,0.00031574,30]
[422253312,1778766646000,-169.0,0.0003156,30]
[422253316,1778766646000,-150.0,0.00031577,7]
[422253326,1778766646000,-150.0,0.00031626,7]
[422253317,1778766646000,-150.0,0.00031577,7]
[422253319,1778766646000,-206.0,0.00031593,30]
[422253318,1778766646000,-150.0,0.00031587,7]
[422253320,1778766646000,-155.0,0.00031593,30]
[422253321,1778766646000,-217.0,0.00031593,30]
[422253323,1778766646000,-4639.0,0.00031593,30]
[422253324,1778766646000,-237.0,0.00031593,30]
[422253325,1778766646000,-202.0,0.00031593,30]
[422253322,1778766646000,-3426.0,0.00031593,30]
[422253327,1778766646000,-150.0,0.00031631,7]
[422253328,1778766646000,-150.0,0.00031665,7]
[422253276,1778766646000,-1000.0,0.0003115,2]
[422253303,1778766646000,-2998.49,0.000315,7]
[422253298,1778766646000,-820.27187466,0.00031399,2]
[422253315,1778766646000,-181.87,0.00031575,7]
[422253297,1778766646000,-150.0,0.0003139,7]
[422253270,1778766646000,-928.5,0.00031087,7]
[422253301,1778766646000,-150.0,0.0003143,7]
[422253274,1778766646000,-150.0,0.0003115,7]
[422253267,1778766646000,-150.0,0.00031065,7]
[422253275,1778766646000,-1000.0,0.0003115,2]
[422253272,1778766646000,-150.0,0.00031116,7]
[422253279,1778766646000,-1000.0,0.0003115,2]
[422253283,1778766646000,-1847.41533141,0.0003119,2]
[422253281,1778766646000,-1000.0,0.0003119,2]
[422253282,1778766646000,-1000.0,0.0003119,2]
[422253280,1778766646000,-150.0,0.00031155,7]
[422253284,1778766646000,-150.0,0.00031194,7]
[422253287,1778766646000,-150.0,0.00031233,7]
[422253290,1778766646000,-150.0,0.00031273,7]
[422253300,1778766646000,-150.0,0.00031406,7]
[422253299,1778766646000,-928.5,0.00031401,7]
[422253286,1778766646000,-150.0,0.00031211,7]
[422253296,1778766646000,-150.0,0.00031374,7]
[422253293,1778766646000,-150.0,0.00031315,7]
[422253302,1778766646000,-150.0,0.00031469,7]
[422253294,1778766646000,-150.0,0.00031351,7]
[422253295,1778766646000,-150.0,0.00031363,7]
[422253292,1778766646000,-150.0,0.00031312,7]
[422253288,1778766646000,-928.5,0.00031244,7]
[422253285,1778766646000,-150.0,0.00031211,7]
[422253289,1778766646000,-1591.71,0.00031244,7]
[422253291,1778766646000,-150.0,0.00031292,7]
[422253381,1778766647000,-172.8504,0.00032204,2]
[422253388,1778766647000,-167.71504405,0.0003222,6]
[422253379,1778766647000,-150.0,0.00032186,7]
[422253383,1778766647000,-2661.0,0.0003221,5]
[422253385,1778766647000,-150.0,0.00032214,7]
[422253360,1778766647000,-150.0,0.00032057,7]
[422253371,1778766647000,-67469.217192,0.00032142,2]
[422253361,1778766647000,-150.0,0.00032089,7]
[422253358,1778766647000,-1506.33096027,0.00032027,2]
[422253369,1778766647000,-729.541633,0.00032142,2]
[422253375,1778766647000,-150.0,0.00032175,7]
[422253373,1778766647000,-150.0,0.00032146,7]
[422253387,1778766647000,-150.0,0.00032217,7]
[422253399,1778766647000,-150.0,0.00032332,7]
[422253390,1778766647000,-150.0,0.00032254,7]
[422253394,1778766647000,-150.0,0.00032264,7]
[422253392,1778766647000,-600.0,0.0003226,10]
[422253407,1778766647000,-150.0,0.0003243,7]
[422253396,1778766647000,-150.0,0.00032293,7]
[422253410,1778766647000,-150.0,0.0003243,7]
[422253412,1778766647000,-150.0,0.0003243,7]
[422253417,1778766647000,-150.0,0.00032489,7]
[422253413,1778766647000,-150.0,0.0003243,7]
[422253415,1778766647000,-150.0,0.0003245,7]
[422253404,1778766647000,-150.0,0.00032371,7]
[422253354,1778766647000,-150.0,0.00032003,7]
[422253377,1778766647000,-150.0,0.00032186,7]
[422253356,1778766647000,-150.0,0.00032024,7]
[422253330,1778766647000,-150.0,0.00031699,7]
[422253355,1778766647000,-150.0,0.00032018,7]
[422253331,1778766647000,-150.0,0.00031699,7]
[422253329,1778766647000,-600.0,0.00031699,9]
[422253338,1778766647000,-1145.83,0.000318,7]
[422253337,1778766647000,-150.0,0.0003179,7]
[422253336,1778766647000,-150.0,0.00031783,7]
[422253335,1778766647000,-150.0,0.00031747,7]
[422253333,1778766647000,-150.0,0.00031704,7]
[422253332,1778766647000,-4042.1,0.000317,14]
[422253334,1778766647000,-150.0,0.00031743,7]
[422253340,1778766647000,-150.0,0.00031822,7]
[422253339,1778766647000,-1206.53,0.000318,7]
[422253350,1778766647000,-152.0,0.00031987,5]
[422253363,1778766647000,-2587.48505216,0.00032095,2]
[422253341,1778766647000,-150.0,0.00031861,7]
[422253344,1778766647000,-150.0,0.000319,7]
[422253347,1778766647000,-150.0,0.00031956,30]
[422253342,1778766647000,-150.0,0.00031861,7]
[422253343,1778766647000,-150.0,0.00031861,7]
[422253346,1778766647000,-150.0,0.00031948,7]
[422253351,1778766647000,-200.0,0.00032,120]
[422253348,1778766647000,-7457.40027006,0.00031963,30]
[422253349,1778766647000,-150.0,0.00031979,7]
[422253352,1778766647000,-700.0,0.00032,2]
[422253353,1778766647000,-1010.33,0.00032,120]
[422253365,1778766647000,-150.0,0.00032097,7]
[422253367,1778766647000,-150.0,0.00032136,7]
[422253345,1778766647000,-150.0,0.0003194,7]
[422253419,1778766647000,-150.0,0.00032511,7]
[422253430,1778766647000,-248.0,0.0003256,30]
[422253405,1778766647000,-150.0,0.00032411,7]
[422253464,1778766647000,-500.0,0.00032745,2]
[422253468,1778766647000,-4042.1,0.000328,14]
[422253469,1778766647000,-150.0,0.00032803,7]
[422253477,1778766647000,-1262.82,0.00032877,2]
[422253480,1778766647000,-500.0,0.00032877,2]
[422253470,1778766647000,-1426.26891256,0.00032819,2]
[422253474,1778766647000,-150.0,0.00032857,7]
[422253479,1778766647000,-500.0,0.00032877,2]
[422253476,1778766647000,-506.65,0.00032877,7]
[422253475,1778766647000,-1169.0,0.00032877,2]
[422253471,1778766647000,-600.0,0.00032822,10]
[422253473,1778766647000,-150.0,0.00032842,7]
[422253461,1778766647000,-150.0,0.00032685,7]
[422253478,1778766647000,-1000.0,0.00032877,30]
[422253482,1778766647000,-500.0,0.00032877,2]
[422253483,1778766647000,-500.0,0.00032877,2]
[422253485,1778766647000,-414.01791719,0.00032877,2]
[422253484,1778766647000,-500.0,0.00032877,2]